bitfinex/quotes_BTCUSD_20250313
["timestamp","ask_amount","ask_price","bid_price","bid_amount"]
[1741888979753,0.260905,80489.0,80486.0,1.5]
[1741888979966,0.260905,80489.0,80478.0,0.248513]
[1741888979967,0.012425,80479.0,80471.0,0.012426]
[1741888980180,0.248508,80480.0,80472.0,0.13212699]
[1741888980347,0.012425,80482.0,80466.0,2e-07]
[1741888980348,0.012426,80476.0,80470.0,0.16816]
[1741888980555,0.248536,80471.0,80468.0,1.66816]
[1741888980755,0.248542,80470.0,80468.0,1.66816]
[1741888980972,0.24853,80473.0,80468.0,1.66816]
[1741888981330,0.01158127,80470.0,80468.0,1.66816]
[1741888981739,0.012427,80469.0,80468.0,1.66816]
[1741888981944,0.012427,80469.0,80468.0,0.16816]
[1741888982154,0.26012027,80470.0,80468.0,0.16816]
[1741888982569,0.02400827,80469.0,80468.0,0.16816]
[1741888983430,0.01158127,80469.0,80468.0,0.16816]
[1741888983578,0.01158127,80469.0,80468.0,0.54883399]
[1741888984049,0.01158127,80469.0,80468.0,0.16816]
[1741888984178,0.02400827,80469.0,80466.0,2e-07]
[1741888984386,0.248546,80468.0,80466.0,0.1681602]
[1741888984798,0.012427,80467.0,80466.0,0.1681602]
[1741888985001,0.01158127,80469.0,80466.0,0.1681602]
[1741888985002,0.01158127,80469.0,80467.0,0.248549]
[1741888985633,0.02333333,80507.0,80501.0,0.260866]
[1741888985888,0.02333333,80507.0,80501.0,0.54872699]
[1741888986090,0.02333333,80507.0,80501.0,0.56090759]
[1741888986445,0.02333333,80507.0,80501.0,2.36090759]
[1741888986649,9.3e-07,80507.0,80506.0,0.57538985]
[1741888986859,9.3e-07,80507.0,80506.0,0.84870999]
[1741888987246,9.3e-07,80507.0,80506.0,2.34870999]
[1741888989504,9.3e-07,80507.0,80506.0,0.16812]
[1741888989924,0.012421,80504.0,80503.0,0.16812]
[1741888990146,9.3e-07,80507.0,80503.0,0.16812]
[1741888990321,0.260855,80505.0,80503.0,0.16812]
[1741888990772,0.260855,80505.0,80490.0,0.012423]
[1741888990773,0.012422,80500.0,80490.0,0.012423]
[1741888991059,0.012422,80497.0,80490.0,0.012423]
[1741888991270,0.248468,80493.0,80487.0,0.012424]
[1741888991486,0.248468,80493.0,80488.0,0.012424]
[1741888991701,0.248463,80495.0,80488.0,0.260905]
[1741888991906,0.012422,80498.0,80491.0,0.248474]
[1741888992113,0.248431,80505.0,80498.0,0.012422]
[1741888992296,0.012421,80503.0,80494.0,0.012423]
[1741888992496,0.248447,80500.0,80493.0,0.248468]
[1741888992718,0.248441,80502.0,80496.0,0.012422]
[1741888992926,0.248459,80496.0,80488.0,0.260908]
[1741888993135,0.248448,80500.0,80493.0,0.248467]
[1741888993354,0.012422,80499.0,80485.0,0.180544]
[1741888993568,0.248521,80476.0,80475.0,0.78876]
[1741888993770,0.248495,80485.0,80478.0,0.012425]
[1741888993973,0.012423,80492.0,80480.0,0.012425]
[1741888994180,0.248484,80488.0,80483.0,0.012424]
[1741888994381,0.211387,80487.0,80476.0,0.24852]
[1741888994578,0.211387,80487.0,80479.0,0.012425]
[1741888994796,0.24849,80487.0,80480.0,0.260931]
[1741888994988,0.248494,80485.0,80480.0,0.260931]
[1741888995161,0.248494,80485.0,80480.0,0.248508]
[1741888995374,0.248494,80485.0,80479.0,0.012425]
[1741888995586,0.2485,80483.0,80478.0,0.260938]
[1741888995785,0.2485,80483.0,80475.0,1.049707]
[1741888995947,0.24849,80487.0,80480.0,0.260933]
[1741888996158,0.248493,80486.0,80480.0,0.260933]
[1741888996361,0.248493,80486.0,80477.0,0.012425]
[1741888996362,0.248509,80480.0,80478.0,1.5]
[1741888996570,0.260934,80480.0,80478.0,1.5]
[1741888996781,0.248509,80480.0,80478.0,1.5]
[1741888996990,0.012424,80483.0,80475.0,0.78876]
[1741888996991,0.248499,80484.0,80477.0,0.012425]
[1741888997228,0.248499,80484.0,80475.0,0.78876]
[1741888997229,0.012422,80496.0,80480.0,0.248508]
[1741888997451,0.012422,80496.0,80484.0,0.012424]
[1741888997452,0.248478,80490.0,80484.0,0.012424]
[1741888997686,0.248478,80490.0,80478.0,0.248512]
[1741888997687,0.248514,80479.0,80473.0,0.012426]
[1741888997899,0.248518,80477.0,80471.0,0.260961]
[1741888998106,0.248506,80481.0,80474.0,0.012426]
[1741888998311,0.248511,80480.0,80474.0,0.012426]
[1741888998515,0.012424,80484.0,80475.0,1.04971]
[1741888998746,0.248496,80485.0,80479.0,0.260936]
[1741888998956,0.260914,80486.0,80479.0,0.260936]
[1741888999177,0.248499,80484.0,80479.0,0.012425]
[1741888999594,0.260911,80487.0,80480.0,0.248508]
[1741888999794,0.012425,80480.0,80475.0,0.78876]
[1741889000224,0.248506,80481.0,80476.0,0.416641]
[1741889000431,0.248512,80479.0,80476.0,0.16812]
[1741889000622,0.012426,80476.0,80475.0,0.78876]
[1741889000822,0.01946195,80480.0,80475.0,0.78876]
[1741889001028,0.260829,80513.0,80496.0,0.012422]
[1741889001241,0.248441,80502.0,80491.0,0.248474]
[1741889001455,8e-07,80509.0,80496.0,0.260881]
[1741889001656,0.01962569,80497.0,80494.0,0.260886]
[1741889001857,0.01962569,80497.0,80496.0,0.260881]
[1741889002060,0.01962569,80497.0,80492.0,0.11970099]
[1741889002276,0.01962569,80497.0,80495.0,0.248462]
[1741889002484,0.01962569,80497.0,80487.0,0.16812]
[1741889002627,0.248487,80487.0,80476.0,0.012426]
[1741889002826,0.248512,80479.0,80475.0,0.78876]
[1741889003031,0.012426,80476.0,80475.0,0.78876]
[1741889003451,0.012427,80469.0,80467.0,0.0003372]
[1741889003789,0.260973,80468.0,80467.0,0.0003372]
[1741889004412,0.29570475,80468.0,80467.0,0.0003372]
[1741889004620,0.6102456,80468.0,80467.0,0.0003372]
[1741889004826,0.72994659,80468.0,80467.0,0.0003372]
[1741889006151,0.6102456,80468.0,80467.0,0.0003372]
[1741889006759,0.3102456,80468.0,80467.0,0.0003372]
[1741889007116,0.28327775,80468.0,80467.0,0.0003372]
[1741889007521,0.29570475,80468.0,80467.0,0.0003372]
[1741889008098,0.28327775,80468.0,80467.0,0.0003372]
[1741889008732,0.29570475,80468.0,80467.0,0.0003372]
[1741889009138,0.27255018,80468.0,80467.0,0.0003372]
[1741889009388,0.28709103,80468.0,80467.0,0.0003372]
[1741889009576,0.58709103,80468.0,80467.0,0.0003372]
[1741889009751,0.57551385,80468.0,80467.0,0.0003372]
[1741889010036,0.260973,80468.0,80467.0,0.0003372]
[1741889010212,0.248546,80468.0,80467.0,0.0003372]
[1741889010404,0.260973,80468.0,80467.0,0.0003372]
[1741889010925,0.28410791,80468.0,80467.0,0.0003372]
[1741889011142,0.27168091,80468.0,80467.0,0.0003372]
[1741889011610,0.27168091,80468.0,80467.0,0.2613132]
[1741889011611,0.03470111,80468.0,80467.0,0.2613132]
[1741889012054,0.03470111,80468.0,80467.0,0.38101419]
[1741889012744,0.0115662,80468.0,80467.0,0.68101419]
[1741889013230,0.019463,80481.0,80480.0,0.260933]
[1741889013449,0.0001686,80488.0,80484.0,0.248495]
[1741889013686,0.0001686,80488.0,80486.0,0.248489]
[1741889013924,0.0001686,80488.0,80487.0,0.13212499]
[1741889014416,0.0001686,80488.0,80487.0,0.60024499]
[1741889015370,2e-07,80497.0,80496.0,0.560881]
[1741889015604,2e-07,80497.0,80496.0,1.46946199]
[1741889015822,0.01269776,80534.0,80521.0,0.012419]
[1741889016047,0.248304,80547.0,80537.0,0.260747]
[1741889016327,0.248698,80549.0,80542.0,0.260732]
[1741889016553,0.248698,80549.0,80540.0,1.5]
[1741889016786,0.019447,80544.0,80543.0,0.13211599]
[1741889017015,0.019447,80544.0,80543.0,0.28782099]
[1741889017707,0.019447,80544.0,80540.0,1.5]
[1741889017950,0.11051854,80545.0,80543.0,0.16812]
[1741889018176,0.01944654,80544.0,80541.0,0.11970099]
[1741889018401,0.01944654,80544.0,80542.0,0.16812]
[1741889018863,0.01944654,80544.0,80543.0,0.13211599]
[1741889019106,0.26776154,80544.0,80543.0,0.16808]
[1741889019344,0.01944654,80544.0,80538.0,0.012416]
[1741889019568,0.01944654,80544.0,80542.0,0.26073]
[1741889019797,0.01934447,80544.0,80543.0,0.16804]
[1741889020241,0.01934447,80544.0,80543.0,0.180455]
[1741889020503,0.01934447,80544.0,80543.0,0.43211599]
[1741889020763,0.0004,80549.0,80547.0,0.560717]
[1741889020996,0.0001686,80578.0,80568.0,0.560648]
[1741889020997,0.01944537,80575.0,80568.0,0.560648]
[1741889021218,0.01944537,80575.0,80568.0,1.63686899]
[1741889021513,0.01944537,80575.0,80568.0,0.90818099]
[1741889021745,0.01944537,80575.0,80568.0,1.07618099]
[1741889021970,0.01944537,80575.0,80568.0,0.92059199]
[1741889022196,0.26766237,80575.0,80568.0,1.07618099]
[1741889022420,0.01944537,80575.0,80568.0,1.07618099]
[1741889022651,0.26766237,80575.0,80568.0,1.08859199]
[1741889023115,0.01944537,80575.0,80568.0,1.08859199]
[1741889023356,0.01944537,80575.0,80568.0,0.92059199]
[1741889023593,0.01944537,80575.0,80568.0,1.08859199]
[1741889024323,0.24823,80571.0,80568.0,0.78848]
[1741889024984,0.0125796,80569.0,80568.0,0.78848]
[1741889025198,0.012412,80565.0,80544.0,0.012415]
[1741889025439,0.00155171,80564.0,80545.0,0.11970099]
[1741889025670,0.248277,80556.0,80546.0,0.16796]
[1741889025908,0.012412,80566.0,80547.0,0.16796]
[1741889026123,0.0001686,80569.0,80547.0,0.28766099]
[1741889026351,0.012411,80568.0,80549.0,0.248296]
[1741889026573,0.248249,80564.0,80551.0,0.012414]
[1741889026797,0.0001686,80569.0,80562.0,0.012412]
[1741889027019,0.248254,80563.0,80560.0,0.16832]
[1741889027277,0.248273,80557.0,80544.0,0.012415]
[1741889027480,0.0001686,80569.0,80541.0,1.5]
[1741889027481,0.012413,80558.0,80545.0,0.28794099]
[1741889027706,0.012413,80558.0,80545.0,0.36800699]
[1741889027934,0.248271,80557.0,80548.0,0.012414]
[1741889028169,0.248271,80557.0,80542.0,1.512415]
[1741889028170,0.248237,80568.0,80561.0,0.012412]
[1741889028426,0.0001686,80569.0,80563.0,0.012412]
[1741889028667,0.0001686,80569.0,80565.0,0.248246]
[1741889028888,0.01944168,80567.0,80566.0,0.30019299]
[1741889029833,0.26768168,80567.0,80566.0,0.28778099]
[1741889030077,0.01944168,80567.0,80566.0,0.248243]
[1741889030316,0.01944168,80567.0,80566.0,0.416323]
[1741889030533,0.01944168,80567.0,80566.0,0.260655]
[1741889030768,0.01944168,80567.0,80566.0,0.428735]
[1741889031011,0.248228,80571.0,80566.0,0.260655]
[1741889031189,0.01241,80576.0,80562.0,0.248256]
[1741889031190,0.248237,80569.0,80562.0,0.248255]
[1741889031448,0.55928293,80580.0,80554.0,0.012414]
[1741889031674,0.012411,80569.0,80563.0,0.16792]
[1741889031903,0.248229,80571.0,80563.0,0.012412]
[1741889032147,0.0001686,80578.0,80571.0,0.012411]
[1741889032357,0.248216,80575.0,80569.0,0.248232]
[1741889032808,0.248209,80577.0,80570.0,0.16792]
[1741889033055,0.248215,80575.0,80569.0,0.260645]
[1741889033295,0.0001686,80578.0,80574.0,0.01241]
[1741889033542,0.0001686,80578.0,80577.0,0.248209]
[1741889033756,0.0001686,80578.0,80576.0,0.01241]
[1741889033978,0.0001686,80578.0,80570.0,0.78808]
[1741889034201,0.0001686,80578.0,80574.0,0.01241]
[1741889034432,0.0001686,80578.0,80577.0,0.260619]
[1741889034660,0.0001686,80578.0,80576.0,0.01241]
[1741889034875,0.0001686,80578.0,80577.0,0.260619]
[1741889035948,0.0001686,80578.0,80577.0,0.428539]
[1741889036377,0.0001686,80578.0,80577.0,0.16792]
[1741889036648,0.0001686,80578.0,80577.0,1.66792]
[1741889036853,0.0001686,80578.0,80568.0,0.248234]
[1741889036854,0.248209,80577.0,80568.0,0.248234]
[1741889037086,0.0001686,80578.0,80576.0,0.24821]
[1741889037299,0.0001686,80578.0,80577.0,0.01241]
[1741889037717,0.0001686,80578.0,80572.0,0.012411]
[1741889037933,0.0001686,80578.0,80573.0,0.42855]
[1741889038151,0.0001686,80578.0,80577.0,0.01241]
[1741889038371,0.0001686,80578.0,80576.0,0.248212]
[1741889038576,0.0001686,80578.0,80577.0,0.18033]
[1741889038789,0.0001686,80578.0,80577.0,0.16792]
[1741889039010,0.0001686,80578.0,80574.0,0.01241]
[1741889039231,0.0001686,80578.0,80570.0,0.80026895]
[1741889039448,0.0125786,80578.0,80571.0,0.16788]
[1741889039678,0.0001686,80578.0,80576.0,0.01241]
[1741889039893,0.0001686,80578.0,80577.0,0.260619]
[1741889040321,0.0001686,80578.0,80570.0,0.80026895]
[1741889040322,0.01241,80574.0,80570.0,0.80026895]
[1741889040544,0.012411,80571.0,80570.0,0.78808]
[1741889040770,0.248224,80573.0,80570.0,0.78808]
[1741889041000,0.248218,80575.0,80570.0,0.800491]
[1741889041240,0.0001686,80578.0,80574.0,0.01241]
[1741889041459,0.0001686,80578.0,80577.0,0.260619]
[1741889041735,0.0001686,80578.0,80574.0,0.260626]
[1741889041957,0.0001686,80578.0,80577.0,0.18029]
[1741889042431,0.0001686,80578.0,80577.0,0.59999099]
[1741889042658,0.0001686,80578.0,80577.0,0.43211099]
[1741889042898,6e-07,80589.0,80588.0,0.012408]
[1741889043130,6e-07,80589.0,80588.0,0.68028399]
[1741889043649,6e-07,80589.0,80588.0,0.84816399]
[1741889044612,0.00155083,80611.0,80599.0,0.248138]
[1741889044843,0.012405,80609.0,80599.0,0.248138]
[1741889045080,0.012407,80598.0,80588.0,0.16788]
[1741889045323,6.636e-05,80589.0,80584.0,0.260597]
[1741889045586,6.636e-05,80589.0,80576.0,0.3]
[1741889045587,0.248182,80586.0,80585.0,0.1684]
[1741889047000,0.012409,80581.0,80575.0,0.16844]
[1741889047230,0.260622,80576.0,80575.0,0.16844]
[1741889047495,0.260622,80576.0,80570.0,0.0003368]
[1741889047496,0.260639,80571.0,80570.0,0.0003368]
[1741889047727,0.248228,80571.0,80570.0,0.0003368]
[1741889047974,0.0194413,80576.0,80575.0,0.01241]
[1741889048258,0.012408,80588.0,80575.0,0.260625]
[1741889048502,0.24821,80577.0,80575.0,0.16844]
[1741889048779,0.012409,80584.0,80577.0,0.248207]
[1741889048780,0.248189,80584.0,80577.0,0.248207]
[1741889048998,0.248191,80583.0,80577.0,0.260618]
[1741889049226,0.248185,80585.0,80579.0,0.01241]
[1741889049461,0.01943932,80586.0,80579.0,0.01241]
[1741889049462,0.01943932,80586.0,80580.0,0.01241]
[1741889049689,0.01241,80579.0,80575.0,0.16832]
[1741889049915,0.248228,80571.0,80570.0,0.0003368]
[1741889050147,0.248212,80576.0,80571.0,0.16844]
[1741889050387,0.248205,80579.0,80572.0,0.248225]
[1741889050614,0.012409,80585.0,80571.0,0.16844]
[1741889050615,0.248221,80574.0,80571.0,0.16844]
[1741889050875,0.248197,80581.0,80571.0,0.16844]
[1741889051108,0.248207,80578.0,80573.0,0.248219]
[1741889051360,0.248211,80577.0,80571.0,0.16844]
[1741889051591,0.248203,80579.0,80571.0,0.16844]
[1741889051831,0.248206,80578.0,80572.0,0.248225]
[1741889052077,0.248224,80573.0,80571.0,0.16844]
[1741889052541,0.248223,80573.0,80571.0,0.16844]
[1741889052773,0.248223,80573.0,80570.0,0.0003368]
[1741889052774,0.260639,80571.0,80570.0,0.0003368]
[1741889053220,0.39488084,80571.0,80570.0,0.0003368]
[1741889053682,0.41256672,80571.0,80570.0,8e-07]
[1741889053948,0.71256672,80571.0,80570.0,8e-07]
[1741889054167,1.34166672,80571.0,80570.0,8e-07]
[1741889056930,1.36111277,80571.0,80570.0,8e-07]
[1741889057382,1.34870177,80571.0,80570.0,8e-07]
[1741889057621,1.36111277,80571.0,80570.0,8e-07]
[1741889057869,1.36111277,80571.0,80540.0,0.0003368]
[1741889057870,0.58027685,80541.0,80540.0,8e-07]
[1741889058120,0.248402,80515.0,80508.0,0.012421]
[1741889058373,0.012419,80518.0,80502.0,0.24844]
[1741889058374,0.260827,80513.0,80502.0,0.24844]
[1741889058629,0.248427,80507.0,80497.0,0.260875]
[1741889058863,0.24842,80509.0,80499.0,0.24845]
[1741889059121,0.248425,80507.0,80501.0,0.012422]
[1741889059360,0.248433,80505.0,80499.0,0.260872]
[1741889059581,0.38051099,80518.0,80508.0,0.012421]
[1741889059817,0.3792,80535.0,80512.0,0.248408]
[1741889060047,0.248389,80519.0,80513.0,0.01242]
[1741889060275,0.01242,80513.0,80502.0,0.24844]
[1741889060494,0.012421,80503.0,80491.0,0.012423]
[1741889060698,0.248448,80500.0,80498.0,0.16916]
[1741889060921,0.248443,80502.0,80498.0,0.16916]
[1741889060922,0.248431,80505.0,80498.0,0.16916]
[1741889061172,0.012421,80506.0,80498.0,0.16916]
[1741889061173,0.012421,80503.0,80498.0,0.16916]
[1741889061402,0.012422,80501.0,80489.0,0.0003368]
[1741889061625,0.248459,80496.0,80489.0,0.0003368]
[1741889061850,0.248466,80494.0,80489.0,0.2488168]
[1741889062088,0.248456,80497.0,80492.0,0.012423]
[1741889062342,0.248463,80495.0,80489.0,0.2612408]
[1741889062542,0.248459,80496.0,80489.0,0.0003368]
[1741889063012,0.248465,80495.0,80489.0,0.0003368]
[1741889063246,0.248468,80493.0,80489.0,0.0003368]
[1741889063473,0.248465,80495.0,80489.0,0.0003368]
[1741889063714,0.248422,80508.0,80500.0,0.012422]
[1741889063949,0.248458,80497.0,80492.0,0.248471]
[1741889064169,0.248456,80499.0,80489.0,0.2612408]
[1741889064408,0.01242,80511.0,80500.0,0.260868]
[1741889064644,0.01242,80514.0,80500.0,0.260868]
[1741889064645,0.24842,80509.0,80501.0,0.248443]
[1741889064880,0.248375,80524.0,80509.0,0.01242]
[1741889065108,0.248379,80522.0,80513.0,0.01242]
[1741889065335,0.248385,80520.0,80513.0,0.01242]
[1741889065549,0.248397,80516.0,80509.0,0.260836]
[1741889065760,0.248395,80517.0,80511.0,0.248411]
[1741889065979,0.248379,80522.0,80516.0,0.012419]
[1741889066414,0.01945364,80519.0,80511.0,0.01266089]
[1741889066647,0.01945364,80519.0,80517.0,1.5]
[1741889067769,0.01945364,80519.0,80518.0,0.012419]
[1741889067978,0.248346,80533.0,80526.0,0.012418]
[1741889068199,0.01945342,80533.0,80531.0,0.260768]
[1741889068412,0.01945342,80533.0,80532.0,0.43211799]
[1741889068622,0.012412,80562.0,80552.0,0.260698]
[1741889068823,0.012413,80558.0,80544.0,0.180415]
[1741889069027,0.012414,80553.0,80544.0,0.168]
[1741889069240,0.248296,80549.0,80544.0,0.168]
[1741889069466,0.012415,80545.0,80544.0,0.168]
[1741889069679,0.248305,80546.0,80544.0,0.168]
[1741889070093,0.248269,80558.0,80550.0,0.012414]
[1741889070304,0.24828,80554.0,80548.0,0.012414]
[1741889070511,0.01944741,80553.0,80547.0,0.260714]
[1741889070861,0.01944741,80553.0,80551.0,0.012414]
[1741889071069,0.01944741,80553.0,80548.0,0.260712]
[1741889072004,0.01944741,80553.0,80547.0,0.78832]
[1741889072190,0.248292,80551.0,80547.0,0.78832]
[1741889072495,0.26773341,80553.0,80547.0,1.03662]
[1741889072719,0.248291,80551.0,80547.0,0.78832]
[1741889072954,0.248295,80550.0,80547.0,0.78832]
[1741889073165,0.248299,80548.0,80547.0,0.78832]
[1741889073385,0.248289,80552.0,80547.0,0.78832]
[1741889074027,0.01944741,80553.0,80548.0,0.260713]
[1741889074332,0.01944741,80553.0,80548.0,0.260711]
[1741889074546,0.01944741,80553.0,80547.0,0.78832]
[1741889074547,0.248286,80552.0,80547.0,0.78832]
[1741889074757,0.248299,80548.0,80547.0,0.78832]
[1741889074960,0.260713,80548.0,80547.0,0.78832]
[1741889075932,0.39495484,80548.0,80547.0,0.78832]
[1741889077437,0.248299,80548.0,80547.0,0.78832]
[1741889077699,0.34804849,80570.0,80547.0,0.78832]
[1741889077700,0.012412,80563.0,80550.0,0.012414]
[1741889077905,0.012412,80563.0,80547.0,0.78832]
[1741889077906,0.248298,80549.0,80547.0,0.78832]
[1741889078110,0.248298,80549.0,80547.0,2.28832]
[1741889078530,0.01944623,80552.0,80547.0,2.28832]
[1741889078663,0.248289,80551.0,80547.0,2.28832]
[1741889078859,0.248296,80549.0,80547.0,2.28832]
[1741889079438,0.012414,80548.0,80547.0,0.78832]
[1741889079654,0.248296,80549.0,80547.0,0.78832]
[1741889079872,0.248307,80546.0,80538.0,0.78824]
[1741889080081,0.248321,80541.0,80538.0,0.78824]
[1741889080286,0.248313,80544.0,80538.0,0.78824]
[1741889080498,0.012413,80559.0,80546.0,0.248304]
[1741889080714,0.248303,80547.0,80540.0,0.012416]
[1741889080932,0.01944664,80568.0,80517.0,0.000338]
[1741889080933,0.11970099,80546.0,80517.0,0.000338]
[1741889081148,0.012418,80525.0,80517.0,0.000338]
[1741889081357,0.248364,80527.0,80517.0,0.000338]
[1741889081569,0.012416,80539.0,80528.0,0.012418]
[1741889081800,0.248351,80532.0,80527.0,0.012418]
[1741889082294,0.012416,80540.0,80517.0,0.12003899]
[1741889082295,0.012417,80530.0,80518.0,0.26081]
[1741889082503,0.24836,80528.0,80520.0,0.248384]
[1741889082736,0.01945153,80531.0,80518.0,0.26081]
[1741889082935,0.01945153,80531.0,80517.0,0.000338]
[1741889082936,0.24839,80519.0,80517.0,0.000338]
[1741889083344,0.248388,80519.0,80517.0,0.000338]
[1741889084481,0.012419,80518.0,80517.0,0.000338]
[1741889086267,0.14821355,80518.0,80517.0,0.000338]
[1741889086500,0.45166084,80518.0,80517.0,1e-06]
[1741889087121,0.44666084,80518.0,80517.0,1e-06]
[1741889087756,0.43211999,80518.0,80517.0,1e-06]
[1741889087955,0.13211999,80518.0,80517.0,1e-06]
[1741889088170,0.13367277,80518.0,80517.0,1e-06]
[1741889088839,0.14821362,80518.0,80517.0,1e-06]
[1741889089079,0.14666084,80518.0,80517.0,1e-06]
[1741889089636,0.260807,80519.0,80517.0,1e-06]
[1741889090156,0.012419,80518.0,80517.0,1e-06]
[1741889090365,0.14666084,80518.0,80517.0,1e-06]
[1741889090948,0.14821367,80518.0,80517.0,1e-06]
[1741889092103,0.14666084,80518.0,80517.0,1e-06]
[1741889092627,0.14821366,80518.0,80517.0,1e-06]
[1741889092902,0.14666084,80518.0,80517.0,1e-06]
[1741889093930,0.44821367,80518.0,80517.0,1e-06]
[1741889094147,0.45166084,80518.0,80517.0,1e-06]
[1741889095135,0.44682984,80518.0,80517.0,1e-06]
[1741889095886,0.44182984,80518.0,80517.0,1e-06]
[1741889097145,0.14182984,80518.0,80517.0,1e-06]
[1741889097355,0.16128634,80518.0,80517.0,1e-06]
[1741889098431,0.46283914,80518.0,80517.0,0.01158036]
[1741889098644,0.46128634,80518.0,80517.0,0.01158036]
[1741889099394,0.46628634,80518.0,80517.0,3.6e-07]
[1741889099590,0.260863,80502.0,80492.0,0.02316177]
[1741889099802,0.248468,80493.0,80492.0,0.02316177]
[1741889100231,0.248461,80496.0,80492.0,0.02316177]
[1741889100434,0.248456,80498.0,80492.0,0.02316177]
[1741889100666,0.248455,80498.0,80491.0,0.012423]
[1741889100863,0.012421,80506.0,80494.0,0.012423]
[1741889101085,0.24844,80503.0,80497.0,0.012422]
[1741889101420,0.248453,80498.0,80492.0,0.260894]
[1741889102072,0.248453,80498.0,80493.0,0.260888]
[1741889102281,0.01945872,80497.0,80494.0,0.248465]
[1741889102486,0.01945872,80497.0,80495.0,0.260883]
[1741889102687,0.01945872,80497.0,80496.0,0.012422]
[1741889102897,0.01945872,80497.0,80494.0,0.248465]
[1741889103091,0.01945872,80497.0,80496.0,0.260881]
[1741889103326,0.248419,80509.0,80503.0,0.248436]
[1741889103539,0.248419,80509.0,80504.0,0.012421]
[1741889103741,0.24844,80503.0,80498.0,0.248453]
[1741889104038,0.01242,80509.0,80499.0,0.260869]
[1741889104273,0.3,80522.0,80498.0,0.260875]
[1741889104274,0.248425,80507.0,80498.0,0.248453]
[1741889104444,0.248427,80507.0,80500.0,0.012422]
[1741889104913,0.421916,80541.0,80517.0,0.012419]
[1741889105138,0.248315,80543.0,80517.0,1.13631999]
[1741889105348,0.012416,80538.0,80517.0,1.13631999]
[1741889105526,0.248341,80535.0,80517.0,1.13631999]
[1741889105936,0.248325,80540.0,80517.0,1.13631999]
[1741889105937,0.248338,80536.0,80517.0,1.13631999]
[1741889106302,0.24833,80538.0,80517.0,1.13631999]
[1741889106497,0.248335,80537.0,80517.0,2.63631999]
[1741889106702,0.248345,80533.0,80517.0,2.63631999]
[1741889106908,0.248353,80531.0,80517.0,2.63631999]
[1741889107473,0.248333,80537.0,80517.0,2.63631999]
[1741889108027,0.248352,80531.0,80517.0,2.64858405]
[1741889108436,0.248372,80525.0,80517.0,2.52888306]
[1741889108640,0.248388,80520.0,80517.0,0.7886]
[1741889108838,0.012588,80518.0,80517.0,0.7886]
[1741889109041,0.03204174,80518.0,80517.0,0.7886]
[1741889110619,0.248449,80500.0,80493.0,0.8071228]
[1741889110834,0.24845,80499.0,80494.0,0.16796]
[1741889111292,0.01945756,80498.0,80495.0,0.012423]
[1741889111503,0.248462,80496.0,80494.0,0.16796]
[1741889111791,0.248468,80493.0,80492.0,0.000338]
[1741889112260,0.01945756,80498.0,80493.0,0.260891]
[1741889112483,0.248468,80493.0,80492.0,0.000338]
[1741889112706,0.01945756,80498.0,80492.0,0.000338]
[1741889112951,0.248459,80496.0,80492.0,0.000338]
[1741889113181,0.248465,80495.0,80492.0,0.000338]
[1741889113412,0.248468,80494.0,80492.0,0.000338]
[1741889113634,0.248452,80499.0,80492.0,0.000338]
[1741889113635,0.000169,80518.0,80511.0,0.01242]
[1741889113864,0.000169,80518.0,80517.0,0.260813]
[1741889114352,0.000169,80518.0,80517.0,1.049413]
[1741889115642,0.000169,80518.0,80517.0,0.7886]
[1741889116307,0.260979,80518.0,80517.0,0.7886]
[1741889116447,0.248465,80494.0,80493.0,0.7886]
[1741889116647,0.01242,80509.0,80494.0,0.012423]
[1741889116892,0.248438,80503.0,80497.0,0.012422]
[1741889117098,0.248438,80503.0,80493.0,0.7886]
[1741889117326,0.01454085,80517.0,80504.0,0.012421]
[1741889117536,0.000169,80518.0,80507.0,0.012421]
[1741889117735,0.248394,80517.0,80504.0,0.012421]
[1741889117940,0.248417,80510.0,80502.0,0.012422]
[1741889118188,0.248407,80513.0,80506.0,0.012421]
[1741889118413,0.248413,80512.0,80506.0,0.012421]
[1741889118659,0.248435,80504.0,80499.0,0.16796]
[1741889118888,0.248446,80501.0,80499.0,0.16796]
[1741889119122,0.248432,80505.0,80500.0,0.012422]
[1741889119372,0.248446,80501.0,80499.0,0.16796]
[1741889119794,0.012422,80500.0,80499.0,0.16796]
[1741889120011,0.012422,80500.0,80497.0,0.000338]
[1741889120012,0.012422,80498.0,80497.0,0.000338]
[1741889120496,0.0799,80523.0,80499.0,0.248447]
[1741889120725,0.012418,80525.0,80510.0,0.01242]
[1741889120939,0.248403,80515.0,80508.0,0.260843]
[1741889121131,0.012588,80518.0,80508.0,0.260843]
[1741889121132,0.01962401,80518.0,80516.0,0.260816]
[1741889121544,0.01962401,80518.0,80514.0,0.260821]
[1741889121800,0.01962401,80518.0,80513.0,0.260824]
[1741889122027,0.01962401,80518.0,80511.0,0.248412]
[1741889122279,0.01962401,80518.0,80511.0,0.260832]
[1741889122498,0.01962401,80518.0,80516.0,0.248397]
[1741889122965,0.01962401,80518.0,80516.0,0.260816]
[1741889123223,0.01962401,80518.0,80514.0,0.260821]
[1741889123702,0.01242,80515.0,80497.0,0.000338]
[1741889124004,0.248409,80513.0,80505.0,0.260849]
[1741889124222,0.000169,80517.0,80513.0,0.01242]
[1741889124436,0.00508056,80547.0,80538.0,0.012416]
[1741889124685,0.11970099,80547.0,80542.0,0.012415]
[1741889124886,1.10782356,80566.0,80556.0,0.248273]
[1741889125098,0.06970045,80567.0,80557.0,0.012413]
[1741889125304,0.11970099,80564.0,80559.0,0.21175192]
[1741889125532,0.31794245,80567.0,80558.0,0.012413]
[1741889125744,0.248235,80569.0,80560.0,0.012413]
[1741889125952,0.248216,80576.0,80562.0,0.248256]
[1741889126167,0.248235,80569.0,80558.0,0.23294339]
[1741889126374,0.012412,80561.0,80542.0,0.3]
[1741889126586,0.012411,80568.0,80554.0,1.748279]
[1741889126792,0.248256,80562.0,80554.0,1.760693]
[1741889127032,6.636e-05,80589.0,80568.0,0.248237]